fUSD/lending_fUSD_20260116
["ID","MTS","AMOUNT","RATE_DAILY","PERIOD"]
[402139598,1768548642518,-1308.51258046,0.00018,2]
[402139601,1768548642596,-1800.0,0.00018,2]
[402139602,1768548642801,-295.43490005,0.00018,2]
[402139607,1768548645325,-1861.6335021,0.00018,2]
[402139613,1768548646196,-344366.16224585,0.00018,2]
[402139614,1768548646207,-623.5614103,0.00018,2]
[402139615,1768548646218,-3613.0383036,0.00018,2]
[402139616,1768548646362,-955.62,0.00018,2]
[402139617,1768548646443,-1036.5976,0.00018,2]
[402139618,1768548799706,-181.39136137,0.00017582,2]
[402139619,1768548815870,-280.32145966,0.00017582,2]
[402139620,1768548825627,151.0,0.00016626,2]
[402139636,1768548949874,-273.6110788,0.00017482,2]
[402139637,1768548952017,-161.80446071,0.00017482,2]
[402139638,1768548954265,-384.3889212,0.00017482,2]
[402139639,1768548957845,200.0,0.00016763,2]
[402139652,1768548998413,151.0,0.00016581,2]
[402139654,1768549044565,678.0,0.00030137,120]
[402139672,1768549256485,200.0,0.0003,120]
[402139673,1768549291342,600.0,0.0003,120]
[402139674,1768549302772,600.0,0.0003,120]
[402139675,1768549322011,166.66,0.00016239,2]
[402139676,1768549322146,166.66,0.00016581,2]
[402139677,1768549322208,166.66,0.00016923,2]
[402139680,1768549404594,500.0,0.0003,120]
[402139681,1768549417094,500.0,0.0003,120]
[402139682,1768549424457,500.0,0.0003,120]
[402139683,1768549434322,172.9,0.00016888,2]
[402139697,1768549583741,150.0,0.000162,2]
[402139698,1768549584243,150.0,0.0001665,2]
[402139699,1768549640222,1250.81,8.415e-05,2]
[402139700,1768549640442,1250.81,8.858e-05,2]
[402139701,1768549640832,1250.81,9.301e-05,2]
[402139702,1768549641043,1250.81,9.744e-05,2]
[402139703,1768549641246,1250.81,0.00010187,2]
[402139704,1768549641462,1250.81,0.0001063,2]
[402139705,1768549641674,1250.81,0.00011073,2]
[402139706,1768549641861,1250.81,0.00011516,2]
[402139707,1768549642069,1250.81,0.00011959,2]
[402139708,1768549642270,1250.81,0.00012401,2]
[402139709,1768549642475,1250.81,0.00012844,2]
[402139710,1768549642702,1250.81,0.00013287,2]
[402139711,1768549642906,1250.81,0.0001373,2]
[402139712,1768549643115,1250.81,0.00014173,2]
[402139713,1768549643308,1250.81,0.00014616,2]
[402139714,1768549643514,1250.81,0.00015059,2]
[402139715,1768549643710,1250.81,0.00015502,2]
[402139716,1768549643914,1250.81,0.00015945,2]
[402139717,1768549644775,1250.81,0.00016388,2]
[402139718,1768549644864,1250.81,0.0001683,2]
[402139719,1768549653108,-193.314864,0.00017014,2]
[402139720,1768549653131,-181.39136137,0.00017057,2]
[402139721,1768549653154,-150.0,0.000171,2]
[402139722,1768549653178,-166.66,0.00017265,2]
[402139723,1768549653201,-195.0,0.00017319,2]
[402139724,1768549653223,-250.0,0.00017373,2]
[402139725,1768549653246,-300.0,0.00017481,2]
[402139726,1768549653268,-300.0,0.00017481,2]
[402139727,1768549653296,-1157.99943929,0.00017482,2]
[402139728,1768549653320,-7622.49658015,0.00017482,2]
[402139729,1768549686548,1328.39,0.00016946,2]
[402139731,1768549831477,-210.78338727,0.00017381,2]
[402139732,1768549831487,-874.55881855,0.00017382,2]
[402139768,1768549838278,-689.65104351,0.00017382,2]
[402139770,1768549838290,-37953.99999997,0.00017382,2]
[402139772,1768549838301,-1875.93,0.00017382,2]
[402139775,1768549838316,-948.38,0.00017382,2]
[402139777,1768549838328,-6907.48013797,0.00017382,2]
[402139779,1768549838342,-12679.72651985,0.00017482,2]
[402139781,1768549838351,-150.0,0.0001755,2]
[402139783,1768549838361,-150.0,0.0001758,2]
[402139785,1768549838370,-542.9785735,0.00017581,2]
[402139787,1768549838379,-500.0,0.00017581,2]
[402139789,1768549838388,-410.80276006,0.00017581,2]
[402139791,1768549838399,-500.0,0.00017581,2]
[402139793,1768549838408,-500.0,0.00017581,2]
[402139795,1768549838418,-500.0,0.00017581,2]
[402139797,1768549838427,-500.0,0.00017581,2]
[402139799,1768549838437,-498.92224962,0.00017581,2]
[402139801,1768549838447,-500.0,0.00017581,2]
[402139803,1768549838460,-500.0,0.00017581,2]
[402139805,1768549838470,-500.0,0.00017581,2]
[402139807,1768549838479,-500.0,0.00017581,2]
[402139809,1768549838488,-377.06644125,0.00017581,2]
[402139811,1768549838499,-254.89839607,0.00017581,2]
[402139814,1768549838509,-500.0,0.00017581,2]
[402139816,1768549838518,-500.0,0.00017581,2]
[402139818,1768549838527,-312.51,0.00017581,2]
[402139820,1768549838536,-166.66,0.00017607,2]
[402139822,1768549838546,-1324.10523731,0.0001764,2]
[402139824,1768549838555,-1000.0,0.00017679,2]
[402139826,1768549838565,-500.0,0.00017726,2]
[402139828,1768549838574,-500.0,0.00017753,2]
[402139829,1768549838583,-500.0,0.00017781,2]
[402139832,1768549838593,-500.0,0.00017808,2]
[402139834,1768549838604,-150.0,0.0001783,2]
[402139835,1768549838614,-500.0,0.00017836,2]
[402139837,1768549838624,-312.51,0.00017855,2]
[402139839,1768549838634,-200.0,0.00017856,2]
[402139842,1768549838643,-500.0,0.00017863,2]
[402139843,1768549838655,-616.60795317,0.00017888,7]
[402139846,1768549838664,-1627.2381441,0.00017888,7]
[402139848,1768549838674,-2870.64096889,0.00017888,7]
[402139850,1768549838684,-4294.3072077,0.00017888,7]
[402139852,1768549838694,-5810.3496,0.00017888,7]
[402139854,1768549838707,-500.0,0.0001789,2]
[402139856,1768549838717,-162.45560487,0.000179,2]
[402139858,1768549838726,-339.63050176,0.000179,2]
[402139860,1768549838736,-281.18135916,0.000179,2]
[402139862,1768549838746,-500.0,0.00017945,2]
[402139864,1768549838755,-166.66,0.00017949,2]
[402139866,1768549838765,-590.6,0.00017995,2]
[402139868,1768549838775,-537.7946601,0.00017997,2]
[402139870,1768549838784,-156.07268442,0.00017998,2]
[402139873,1768549838794,-1975.9381187,0.00017999,2]
[402139875,1768549838804,-17281.3577116,0.00017999,2]
[402139877,1768549838813,-225.0866379,0.00017999,2]
[402139879,1768549838823,-2211.8696388,0.00017999,2]
[402139881,1768549838832,-3497.0,0.00018,2]
[402139883,1768549838842,-150.0,0.00018,2]
[402139885,1768549838851,-206.80402482,0.00018,2]
[402139887,1768549838860,-609094.50584002,0.00018,2]
[402140003,1768549840012,-553.95369437,0.00018,2]
[402140277,1768549843013,-3000.0,0.00018,2]
[402140293,1768549843149,-374.09274648,0.00018,2]
[402140315,1768549843343,-1195.785,0.00018,2]
[402140318,1768549843366,-4069.35546928,0.00018,2]
[402140320,1768549843377,-341.04,0.00018,2]
[402140322,1768549843388,-500.0,0.00018,2]
[402140325,1768549843398,-108394.91211362,0.00018,2]
[402140327,1768549843409,-57423.7364733,0.00018,2]
[402140477,1768549845545,-1606.04302251,0.00018,2]
[402140479,1768549845557,-604.0,0.00018,2]
[402140481,1768549845568,-581.45672485,0.00018,2]
[402140504,1768549845774,-1963.25480074,0.00018,2]
[402140520,1768549845911,-8731.87115927,0.00018,2]
[402140523,1768549845923,-310.546,0.00018,2]
[402140620,1768549879632,151.0,0.00016722,2]
[402140621,1768549892410,151.0,0.00016717,2]
[402140623,1768549900689,641.18092831,0.00016527,2]
[402140624,1768549914254,10000.0,0.00017,2]
[402140625,1768549979682,10000.0,0.0001205,2]
[402140626,1768550040165,5320.96598282,0.00017,2]
[402140627,1768550094697,171.0,8.3e-07,2]
[402140628,1768550107313,3672.44,0.00014161,2]
[402140631,1768550245884,1000.0,0.00016883,2]
[402140730,1768550404410,160.17,0.00028596,120]
[402140732,1768550405082,1500.0,0.00016871,2]
[402140831,1768550781100,150.0,0.000162,2]
[402140837,1768550844125,-686.27,0.00017132,2]
[402140838,1768550844146,-617.58648172,0.0001738,2]
[402140839,1768550851396,200.0,0.0001688,2]
[402140845,1768550887922,5163.183939,7.945e-05,2]
[402140853,1768550936026,2856.91058738,0.00030136,120]
[402140855,1768550943615,999.0,0.00016818,3]
[402140862,1768551031656,-1200.0,0.0001738,2]
[402140863,1768551031666,-1115.35846697,0.00017381,2]
[402140864,1768551031678,-14971.39493303,0.00017381,2]
[402140865,1768551031689,-161.80446071,0.00017381,2]
[402140866,1768551031699,-12679.7265,0.00017382,2]
[402140867,1768551031709,-2853.30709435,0.00017382,2]
[402140868,1768551031719,-2853.30709426,0.0001744,2]
[402140869,1768551031729,-1000.0,0.00017471,2]
[402140870,1768551031739,-486.08,0.00017471,2]
[402140871,1768551031749,-312.51,0.00017481,2]
[402140872,1768551031758,-1000.0,0.00017482,2]
[402140873,1768551031768,-2853.30709426,0.00017497,2]
[402140874,1768551031777,-2853.30709426,0.00017555,2]
[402140875,1768551031788,-2853.30709426,0.00017612,2]
[402140876,1768551031797,-1324.10523731,0.0001764,2]
[402140877,1768551031808,-150.0,0.00017669,2]
[402140878,1768551031818,-2853.30709426,0.0001767,2]
[402140879,1768551031827,-150.0,0.00017689,2]
[402140880,1768551031837,-500.0,0.00017726,2]
[402140881,1768551031848,-500.0,0.00017726,2]
[402140882,1768551031859,-2853.30709426,0.00017727,2]
[402140883,1768551031869,-312.51,0.00017755,2]
[402140884,1768551031878,-500.0,0.00017781,2]
[402140885,1768551031889,-500.0,0.00017781,2]
[402140886,1768551031898,-2853.30709426,0.00017785,2]
[402140887,1768551031907,-162.45560487,0.000178,2]
[402140888,1768551031917,-626.61067406,0.00017834,2]
[402140889,1768551031926,-1653.6354828,0.00017834,2]
[402140890,1768551031935,-2917.20900333,0.00017834,2]
[402140891,1768551031944,-4363.97020217,0.00017834,2]
[402140892,1768551031954,-5904.5976,0.00017834,2]
[402140894,1768551031963,-500.0,0.00017836,2]
[402140896,1768551031973,-500.0,0.00017836,2]
[402140898,1768551031982,-2853.30709426,0.00017842,2]
[402140900,1768551031992,-200.0,0.00017856,2]
[402140902,1768551032001,-150.0,0.00017869,2]
[402140904,1768551032011,-500.0,0.0001789,2]
[402140906,1768551032020,-2853.30709426,0.000179,2]
[402140908,1768551032030,-281.18135916,0.000179,2]
[402140910,1768551032039,-199.38663486,0.000179,2]
[402140912,1768551032048,-339.63050176,0.000179,2]
[402140914,1768551032057,-500.0,0.00017945,2]
[402140916,1768551032067,-165.0,0.0001799,2]
[402140918,1768551032076,-165.0,0.0001799,2]
[402140920,1768551032086,-17465.4300131,0.00017996,2]
[402140922,1768551032096,-2408.9851974,0.00017996,2]
[402140924,1768551032105,-506.27037057,0.00017999,2]
[402140926,1768551032115,-500.0,0.00017999,2]
[402140928,1768551032125,-193.23191642,0.00017999,2]
[402140930,1768551032134,-493.03505717,0.00017999,2]
[402140932,1768551032143,-319.90457855,0.00017999,2]
[402140934,1768551032152,-156.07268442,0.00017999,2]
[402140936,1768551032161,-500.0,0.00017999,2]
[402140938,1768551032171,-500.0,0.00017999,2]
[402140940,1768551032180,-542.9785735,0.00017999,2]
[402140942,1768551032191,-500.0,0.00017999,2]
[402140944,1768551032200,-500.0,0.00017999,2]
[402140946,1768551032209,-500.0,0.00017999,2]
[402140948,1768551032219,-500.0,0.00017999,2]
[402140950,1768551032228,-500.0,0.00017999,2]
[402140952,1768551032238,-410.80276006,0.00017999,2]
[402140954,1768551032248,-500.0,0.00017999,2]
[402140956,1768551032259,-498.92224962,0.00017999,2]
[402140958,1768551032268,-268.76835359,0.00017999,2]
[402140960,1768551032278,-500.0,0.00017999,2]
[402140962,1768551032287,-500.0,0.00017999,2]
[402140964,1768551032297,-500.0,0.00017999,2]
[402140966,1768551032307,-3498.0,0.00018,2]
[402140968,1768551032316,-150.0,0.00018,2]
[402140970,1768551032326,-206.80402482,0.00018,2]
[402140972,1768551032336,-1606514.38240367,0.00018,2]
[402140975,1768551032348,-1369.846,0.00018,2]
[402140977,1768551032359,-684.90508682,0.00018,2]
[402140983,1768551032410,-879.1913564,0.00018,2]
[402140985,1768551032422,-565.39403671,0.00018,2]
[402140987,1768551032432,-11484.023682,0.00018,2]
[402140989,1768551032444,-6889.881243,0.00018,2]
[402140992,1768551032463,-1068.07725392,0.00018,2]
[402140994,1768551032474,-1848.75756851,0.00018,2]
[402140996,1768551032485,-953.31026791,0.00018,2]
[402140999,1768551032497,-310.31,0.00018,2]
[402141004,1768551032537,-11037.99188665,0.00018,2]
[402141006,1768551032548,-1766.39692795,0.00018,2]
[402141008,1768551032559,-832.35051601,0.00018,2]
[402141011,1768551032578,-2952.94751725,0.00018,2]
[402141014,1768551032589,-497.76627144,0.00018,2]
[402141016,1768551032600,-7144.59739854,0.00018,2]
[402141153,1768551037766,-1499.58422285,0.00018,2]
[402141154,1768551037818,-903.93718342,0.00018,2]
[402141155,1768551037871,-691.87040857,0.00018,2]
[402141156,1768551037883,-419.12847376,0.00018,2]
[402141157,1768551037940,-33097.99999934,0.00018,2]
[402141158,1768551037951,-446.49837639,0.00018,2]
[402141159,1768551037994,-635999.97487086,0.00018,2]
[402141160,1768551038004,-51033.78610078,0.00018,2]
[402141161,1768551038016,-518.98264,0.00018,2]
[402141162,1768551038046,-175593.363638,0.00018,2]
[402141163,1768551038058,-1658.57091694,0.00018,2]
[402141164,1768551038070,-7676.03998936,0.00018,2]
[402141165,1768551038082,-16221.74760085,0.00018,2]
[402141337,1768551039915,-732.18335078,0.00018,2]
[402141339,1768551039926,-1427.900885,0.00018,2]
[402141341,1768551039937,-1847.29706136,0.00018,2]
[402141344,1768551039947,-4237.64394581,0.00018,2]
[402141346,1768551040110,-936.43138001,0.00018,2]
[402141347,1768551040122,-730.0,0.00018,2]
[402141348,1768551040135,-495.68719811,0.00018,2]
[402141349,1768551040147,-56338.72825719,0.00018,2]
[402141350,1768551040159,-348.7328232,0.00018,2]
[402141351,1768551040290,-223235.5070605,0.00018,2]
[402141352,1768551040302,-833.64213749,0.00018,2]
[402141353,1768551040315,-53013.87452722,0.00018,2]
[402141355,1768551040327,-1059.44336652,0.00018,2]
[402141357,1768551040338,-801.54783843,0.00018,2]
[402141360,1768551040350,-3305.5,0.00018,2]
[402141362,1768551040361,-1219.29144823,0.00018,2]
[402141550,1768551042176,151.0,0.00016759,2]
[402141610,1768551042818,-2727.89505997,0.00018,2]
[402141612,1768551042830,-1908.95357192,0.00018,2]
[402141615,1768551042845,-340.95839276,0.00018,2]
[402141618,1768551042867,-2170.09,0.00018,2]
[402141620,1768551042878,-535.44798845,0.00018,2]
[402141626,1768551042922,-2199.0,0.00018,2]
[402141628,1768551042935,-521.7277719,0.00018,2]
[402141631,1768551042946,-8432.85403011,0.00018,2]
[402141634,1768551042962,-999.64226796,0.00018,2]
[402141636,1768551042974,-363.710021,0.00018,2]
[402141663,1768551045901,-4311.39678493,0.00018,2]
[402141664,1768551045992,-470209.60146908,0.00018,2]
[402141665,1768551046004,-652.25045073,0.00018,2]
[402141666,1768551046149,-1858.17199094,0.00018,2]
[402141674,1768551079371,500.0,0.00015773,2]
[402141675,1768551082891,500.0,0.00015773,2]
[402141676,1768551127366,2467.59,0.00017,2]
[402141677,1768551128074,500.0,0.00015773,2]
[402141685,1768551187918,500.0,0.00015773,2]
[402141740,1768551366702,500.0,0.00015773,2]
[402141770,1768551474987,200.0,0.00016795,2]
[402141790,1768551581335,580.93,0.00016758,2]
[402141806,1768551646262,155.29,0.00016745,2]
[402141807,1768551650665,1600.0,0.00016745,2]
[402141808,1768551652225,1600.0,0.00025117,120]
[402141860,1768551882676,438.97,0.00016684,2]
[402141871,1768552011619,5000.0,0.000162,5]
[402141872,1768552051260,150.0,0.00030137,120]
[402141873,1768552161564,172.9,0.00016586,2]
[402141874,1768552199200,166.66,0.00015723,2]
[402141875,1768552199393,166.66,0.00016054,2]
[402141876,1768552199586,166.66,0.00016385,2]
[402141877,1768552199792,166.66,0.00016716,2]
[402141893,1768552232084,-549.016,0.00017033,2]
[402141894,1768552232094,-166.66,0.00017047,2]
[402141895,1768552232104,-150.0,0.00017194,2]
[402141896,1768552232114,-1314.51746233,0.00017194,2]
[402141897,1768552232123,-150.0,0.00017221,2]
[402141898,1768552232133,-96151.62688402,0.0001728,2]
[402141899,1768552232144,-538.31158719,0.0001728,2]
[402141900,1768552232156,-35023.90102879,0.0001728,2]
[402141901,1768552232166,-1200.0,0.0001728,2]
[402141902,1768552232175,-300.0,0.0001728,2]
[402141903,1768552232184,-1200.0,0.00017281,2]
[402141904,1768552232194,-163.98941053,0.00017282,2]
[402141905,1768552232204,-159.77651434,0.00017282,2]
[402141906,1768552232214,-199.38663485,0.00017282,2]
[402141907,1768552232223,-3743.79432997,0.00017282,2]
[402141908,1768552232232,-3743.79432994,0.00017351,2]
[402141909,1768552232241,-150.0,0.00017354,2]
[402141910,1768552232251,-150.0,0.00017369,2]
[402141911,1768552232260,-202.2164262,0.0001737,2]
[402141912,1768552232269,-500.0,0.0001737,2]
[402141914,1768552232279,-151.0,0.0001737,2]
[402141916,1768552232289,-388.25037086,0.0001737,2]
[402141918,1768552232298,-500.0,0.0001737,2]
[402141920,1768552232307,-151.0,0.0001737,2]
[402141922,1768552232316,-151.0,0.0001737,2]
[402141924,1768552232324,-520.74832924,0.0001737,2]
[402141926,1768552232334,-151.0,0.0001737,2]
[402141928,1768552232343,-151.0,0.0001737,2]
[402141930,1768552232353,-151.0,0.0001737,2]
[402141932,1768552232362,-511.51943041,0.0001737,2]
[402141934,1768552232371,-151.0,0.0001737,2]
[402141936,1768552232381,-151.0,0.0001737,2]
[402141938,1768552232391,-151.0,0.0001737,2]
[402141940,1768552232400,-151.0,0.0001737,2]
[402141942,1768552232409,-151.0,0.0001737,2]
[402141944,1768552232418,-202.76353002,0.0001737,2]
[402141946,1768552232427,-200.0,0.0001737,2]
[402141948,1768552232437,-167.01,0.00017371,3]
[402141950,1768552232446,-166.66,0.00017378,2]
[402141952,1768552232455,-500.0,0.0001738,2]
[402141954,1768552232465,-507.56,0.0001738,2]
[402141956,1768552232475,-1000.0,0.00017382,2]
[402141958,1768552232484,-500.0,0.00017383,2]
[402141960,1768552232493,-159.77651429,0.00017385,2]
[402141962,1768552232502,-3743.79432994,0.00017419,2]
[402141964,1768552232511,-500.0,0.00017481,2]
[402141966,1768552232520,-502.00518748,0.00017481,2]
[402141968,1768552232529,-500.0,0.00017481,2]
[402141970,1768552232539,-507.4251083,0.00017481,2]
[402141972,1768552232548,-500.0,0.00017481,2]
[402141974,1768552232558,-500.0,0.00017481,2]
[402141976,1768552232568,-500.0,0.00017481,2]
[402141978,1768552232577,-500.0,0.00017481,2]
[402141980,1768552232587,-500.0,0.00017481,2]
[402141982,1768552232597,-500.0,0.00017481,2]
[402141984,1768552232607,-316.72538754,0.00017481,2]
[402141986,1768552232616,-536.49828511,0.00017481,2]
[402141988,1768552232626,-500.0,0.00017481,2]
[402141990,1768552232635,-500.0,0.00017481,2]
[402141992,1768552232644,-500.0,0.00017481,2]
[402141994,1768552232654,-292.42921136,0.00017481,2]
[402141996,1768552232663,-578.77910632,0.00017481,2]
[402141997,1768552232672,-508.72192714,0.00017481,2]
[402141999,1768552232681,-500.0,0.00017481,2]
[402142001,1768552232690,-500.0,0.00017481,2]
[402142002,1768552232699,-500.0,0.00017481,2]
[402142003,1768552232708,-186.60912116,0.00017481,2]
[402142004,1768552232718,-500.0,0.00017481,2]
[402142005,1768552232727,-500.0,0.00017481,2]
[402142006,1768552232736,-500.0,0.00017481,2]
[402142007,1768552232745,-159.77651429,0.00017488,2]
[402142008,1768552232755,-3743.79432994,0.00017488,2]
[402142010,1768552232765,-150.0,0.00017544,2]
[402142011,1768552232775,-926.68139729,0.00017557,2]
[402142013,1768552232785,-3743.79432994,0.00017557,2]
[402142014,1768552232795,-159.77651429,0.00017591,2]
[402142015,1768552232804,-926.68139729,0.00017625,2]
[402142016,1768552232815,-3743.79432994,0.00017625,2]
[402142017,1768552232827,-150.0,0.00017635,2]
[402142018,1768552232836,-500.0,0.00017654,2]
[402142019,1768552232845,-507.56,0.00017654,2]
[402142020,1768552232855,-926.68139729,0.00017694,2]
[402142021,1768552232864,-159.77651429,0.00017694,2]
[402142022,1768552232873,-3743.79432994,0.00017694,2]
[402142023,1768552232882,-926.68139729,0.00017763,2]
[402142024,1768552232891,-3743.79432994,0.00017763,2]
[402142025,1768552232900,-159.77651429,0.00017797,2]
[402142026,1768552232909,-166.67,0.00017811,2]
[402142027,1768552232918,-265.391,0.00017827,2]
[402142028,1768552232927,-926.68139729,0.00017831,2]
[402142029,1768552232936,-3743.79432994,0.00017831,2]
[402142030,1768552232946,-363.19648373,0.00017897,2]
[402142031,1768552232955,-500.0,0.00017897,2]
[402142032,1768552232967,-500.0,0.00017897,2]
[402142033,1768552232976,-500.0,0.00017897,2]
[402142034,1768552232986,-504.50437476,0.00017897,2]
[402142035,1768552232995,-500.0,0.00017897,2]
[402142036,1768552233004,-500.0,0.00017897,2]
[402142037,1768552233013,-500.0,0.00017897,2]
[402142038,1768552233022,-2417.13830028,0.00017898,2]
[402142039,1768552233031,-6378.8662173,0.00017898,2]
[402142040,1768552233040,-11253.07611849,0.00017898,2]
[402142041,1768552233049,-7112.93163504,0.00017898,2]
[402142042,1768552233061,-1403.84725605,0.00017898,2]
[402142043,1768552233085,-500.0,0.00017897,2]
[402142044,1768552233094,-904.25933657,0.00017898,2]
[402142046,1768552238093,-500.0,0.00017897,2]
[402142047,1768552238103,-500.0,0.00017897,2]
[402142048,1768552238112,-500.0,0.00017897,2]
[402142049,1768552238122,-500.0,0.00017897,2]
[402142050,1768552238131,-500.0,0.00017897,2]
[402142051,1768552238140,-500.0,0.00017897,2]
[402142052,1768552238150,-500.0,0.00017897,2]
[402142053,1768552238159,-500.0,0.00017897,2]
[402142054,1768552238168,-500.0,0.00017897,2]
[402142055,1768552238178,-500.0,0.00017897,2]
[402142056,1768552238187,-500.0,0.00017897,2]
[402142057,1768552238197,-498.07200687,0.00017897,2]
[402142058,1768552238208,-1.92799313,0.00017897,2]
[402142059,1768552238217,-500.0,0.00017897,2]
[402142060,1768552238226,-500.0,0.00017897,2]
[402142061,1768552238236,-500.0,0.00017897,2]
[402142062,1768552238245,-500.0,0.00017897,2]
[402142063,1768552238255,-500.0,0.00017897,2]
[402142064,1768552238264,-623.49719123,0.00017897,2]
[402142065,1768552238274,-500.0,0.00017897,2]
[402142066,1768552238283,-500.0,0.00017897,2]
[402142067,1768552238292,-500.0,0.00017897,2]
[402142068,1768552238302,-159.72481564,0.00017897,2]
[402142071,1768552238324,-340.27518436,0.00017897,2]
[402142073,1768552238334,-453.56557351,0.00017897,2]
[402142075,1768552238345,-46.43442649,0.00017897,2]
[402142077,1768552238355,-904.54557351,0.00017898,2]
[402142079,1768552238370,-6508.34506982,0.00017898,2]
[402142081,1768552238379,-22776.9003,0.00017898,2]
[402142083,1768552238388,-926.68139729,0.000179,2]
[402142085,1768552238398,-159.77651429,0.000179,2]
[402142087,1768552238407,-3743.79432994,0.000179,2]
[402142089,1768552238417,-2796.0,0.000179,2]
[402142091,1768552238426,-202.3452554,0.00017918,2]
[402142093,1768552238435,-352.71227501,0.00017928,2]
[402142095,1768552238445,-507.56,0.00017928,2]
[402142097,1768552238454,-590.6,0.00017994,2]
[402142099,1768552238464,-662.05261866,0.00017998,2]
[402142101,1768552238475,-150.0,0.00017999,2]
[402142103,1768552238485,-223.93320498,0.00017999,2]
[402142105,1768552238494,-198.58154177,0.00017999,2]
[402142107,1768552238504,-500.0,0.00017999,2]
[402142109,1768552238514,-331.5176082,0.00017999,2]
[402142111,1768552238523,-646402.96085628,0.00018,2]
[402142184,1768552239282,-42453.24992838,0.00018,2]
[402142245,1768552240391,-858.17012339,0.00018,2]
[402142246,1768552240403,-9014.2,0.00018,2]
[402142247,1768552240524,-2720.32931726,0.00018,2]
[402142248,1768552240537,-523.34287504,0.00018,2]
[402142267,1768552243283,-598404.37376849,0.00018,2]
[402142268,1768552243296,-175480.76954792,0.00018,2]
[402142269,1768552243307,-1100.0,0.00018,2]
[402142270,1768552243495,-287485.18837572,0.00018,2]
[402142271,1768552243711,-24485.9920762,0.00018,2]
[402142281,1768552246215,-500.0,0.00017897,2]
[402142282,1768552246226,-3399.32826773,0.00018,2]
[402142283,1768552246343,-1509.94595928,0.00018,2]
[402142284,1768552246385,-8247.56000299,0.00018,2]
[402142285,1768552246432,-2377.375,0.00018,2]
[402142286,1768552246445,-38256.40679526,0.00018,2]
[402142287,1768552246484,-1179.5100002,0.00018,2]
[402142288,1768552246640,-298895.82630346,0.00018,2]
[402142289,1768552264510,150.0,0.00017,2]
[402142290,1768552290136,151.0,0.00016722,2]
[402142291,1768552295711,151.0,0.00016745,2]
[402142292,1768552454927,1000.0,0.00030136,120]
[402142293,1768552463559,1000.0,0.00030136,120]
[402142294,1768552478963,1000.0,0.00030136,120]
[402142295,1768552489420,1000.0,0.00030136,120]
[402142296,1768552492319,5000.0,0.00030137,120]
[402142297,1768552513779,286.54905976,0.00030136,120]
[402142298,1768552733992,4428.0,0.00030136,120]
[402142327,1768552761636,156.35259869,0.00030136,120]
[402142328,1768552785037,3383.32,0.0001693,2]
[402142329,1768552808294,5163.183939,7.945e-05,2]
[402142330,1768552825388,-413.62305273,0.00014164,2]
[402142331,1768552828116,-204.24903758,0.00014164,2]
[402142332,1768552831313,-232.2428294,0.00014164,2]
[402142333,1768552833897,-290.91667314,0.00014164,2]
[402142334,1768552835364,-178.751655,0.00014164,2]
[402142335,1768552836853,-247.82912478,0.00014164,2]
[402142336,1768552842018,-373.82042012,0.00014164,2]
[402142337,1768552845089,-419.28007477,0.00014164,2]
[402142338,1768552846633,3305.1,0.00030136,120]
[402142339,1768552847858,-543.32840004,0.00014164,2]
[402142340,1768552851953,-181.39136137,0.00014164,2]
[402142341,1768552853131,-280.32145966,0.00014164,2]
[402142342,1768552885916,-306.68591141,0.00014164,2]
[402142343,1768552885943,-77.70300979,0.00014968,2]